bitfinex/quotes_SOLUSD_20241220
["timestamp","ask_amount","ask_price","bid_price","bid_amount"]
[1734735982755,0.6714968,193.68,193.59,25.79622765]
[1734735983059,0.6714968,193.68,193.61,25.79622765]
[1734735984460,26.46772445,193.68,193.57,12.9146]
[1734735984670,16.692694,193.68,193.6,16.0211972]
[1734735984980,16.692694,193.68,193.61,16.0211972]
[1734735985472,16.692694,193.68,193.6,16.0211972]
[1734735986270,16.0211972,193.67,193.59,16.0211972]
[1734735986981,16.0211972,193.67,193.6,16.0211972]
[1734735988281,16.0211972,193.66,193.59,16.0211972]
[1734735988581,16.0211972,193.67,193.6,16.0211972]
[1734735990180,0.6714968,193.68,193.61,16.0211972]
[1734735990671,16.692694,193.68,193.61,16.0211972]
[1734735993580,16.692694,193.68,193.58,12.914]
[1734735993883,16.0211972,193.67,193.6,16.0211972]
[1734735994087,16.692694,193.68,193.61,16.0211972]
[1734735994457,16.0211972,193.67,193.6,16.0211972]
[1734735994762,16.692694,193.68,193.6,16.0211972]
[1734735995166,16.692694,193.68,193.6,15.5211972]
[1734735995587,16.692694,193.68,193.61,16.0211972]
[1734735995971,0.6714968,193.68,193.58,12.914]
[1734735996160,0.6714968,193.68,193.61,16.0211972]
[1734735996789,0.6714968,193.68,193.61,15.5211972]
[1734735997791,0.6714968,193.68,193.61,15.0211972]
[1734735998287,0.6714968,193.68,193.64,16.0211972]
[1734735998475,0.6714968,193.68,193.59,23.776884]
[1734735998670,0.6714968,193.68,193.67,16.0211972]
[1734736000886,0.6714968,193.68,193.66,16.0211972]
[1734736001296,0.6714968,193.68,193.63,13.68531246]
[1734736001297,0.6714968,193.68,193.65,16.0211972]
[1734736004108,0.6714968,193.68,193.64,16.0211972]
[1734736004309,0.6714968,193.68,193.63,16.0211972]
[1734736004882,0.5062316,193.68,193.65,16.0211972]
[1734736005308,0.5062316,193.68,193.64,16.0211972]
[1734736007317,0.5062316,193.68,193.63,16.0211972]
[1734736008797,0.5062316,193.68,193.62,16.0211972]
[1734736010203,16.5274288,193.68,193.61,16.0211972]
[1734736010400,16.5274288,193.68,193.58,16.0211972]
[1734736010401,16.0211972,193.66,193.58,16.0211972]
[1734736010606,16.0211972,193.65,193.57,16.0211972]
[1734736011689,16.0211972,193.64,193.57,16.0211972]
[1734736013579,16.0211972,193.63,193.56,16.0211972]
[1734736014718,16.0211972,193.61,193.54,16.0211972]
[1734736015018,16.0211972,193.55,193.44,15.87260541]
[1734736015314,16.0211972,193.54,193.47,16.0211972]
[1734736015624,16.0211972,193.55,193.47,16.0211972]
[1734736016120,16.0211972,193.55,193.48,16.0211972]
[1734736016284,16.0211972,193.55,193.47,16.0211972]
[1734736016900,16.0211972,193.54,193.46,16.0211972]
[1734736017287,16.0211972,193.54,193.41,0.77517121]
[1734736017288,16.0211972,193.52,193.44,16.0211972]
[1734736017500,16.0211972,193.5,193.37,20.8648027]
[1734736017795,16.0211972,193.5,193.41,16.0211972]
[1734736018402,16.0211972,193.47,193.39,16.0211972]
[1734736021086,16.0211972,193.45,193.39,16.0211972]
[1734736021306,16.0211972,193.45,193.37,16.0211972]
[1734736022404,16.0211972,193.47,193.39,16.0211972]
[1734736023030,16.0211972,193.49,193.41,16.0211972]
[1734736024925,16.0211972,193.48,193.41,16.0211972]
[1734736025516,16.0211972,193.47,193.34,1.614]
[1734736025724,16.0211972,193.45,193.38,16.0211972]
[1734736026026,16.0211972,193.46,193.38,16.0211972]
[1734736026214,16.0211972,193.47,193.39,16.0211972]
[1734736028214,16.0211972,193.47,193.4,16.0211972]
[1734736028416,16.0211972,193.48,193.41,16.0211972]
[1734736028603,12.9185,193.53,193.38,13.70324036]
[1734736028930,16.0211972,193.42,193.35,16.0211972]
[1734736029133,16.0211972,193.41,193.34,16.0211972]
[1734736030067,7.8919,193.46,193.36,16.0211972]
[1734736030330,23.9130972,193.46,193.38,16.0211972]
[1734736032708,7.8919,193.46,193.39,16.0211972]
[1734736033405,7.8919,193.46,193.4,16.0211972]
[1734736034307,7.7087,193.51,193.43,16.0211972]
[1734736034510,7.7087,193.51,193.45,16.0211972]
[1734736035328,7.7087,193.51,193.47,16.0211972]
[1734736035630,16.0211972,193.55,193.47,16.0211972]
[1734736037814,1.6286,193.56,193.49,16.0211972]
[1734736038526,1.6286,193.56,193.51,16.0211972]
[1734736038918,6.0801,193.57,193.51,16.0211972]
[1734736039832,16.0211972,193.59,193.51,16.0211972]
[1734736041452,16.0211972,193.59,193.53,16.0211972]
[1734736045831,1.6286,193.61,193.55,16.0211972]
[1734736046032,1.6286,193.61,193.5,39.7980812]
[1734736046033,1.6286,193.61,193.56,16.0211972]
[1734736047452,16.0211972,193.63,193.56,16.0211972]
[1734736047955,6.0801,193.65,193.58,16.0211972]
[1734736048160,1.6286,193.66,193.61,16.0211972]
[1734736048363,0.5062316,193.68,193.61,16.0211972]
[1734736049346,0.5062316,193.68,193.63,16.0211972]
[1734736049845,0.5062316,193.68,193.65,16.0211972]
[1734736055402,0.5062316,193.68,193.67,16.0211972]
[1734736055571,0.5062316,193.68,193.67,39.7980812]
[1734736056974,0.5062316,193.68,193.67,52.7065812]
[1734736057700,0.12588244,193.75,193.68,23.776884]
[1734736057909,0.12588244,193.75,193.7,16.0211972]
[1734736059084,0.12588244,193.75,193.67,12.9085]
[1734736059085,16.0211972,193.74,193.67,16.0211972]
[1734736059397,16.0211972,193.72,193.65,16.0211972]
[1734736061201,16.0211972,193.7,193.63,16.0211972]
[1734736062086,1.5334,193.72,193.64,16.0211972]
[1734736062087,17.5545972,193.72,193.64,16.0211972]
[1734736064610,17.5545972,193.72,193.59,19.75749939]
[1734736064611,1.5334,193.72,193.66,16.0211972]
[1734736066021,16.0211972,193.69,193.62,16.0211972]
[1734736066721,16.0211972,193.69,193.6,16.0211972]
[1734736067021,16.0211972,193.67,193.6,16.0211972]
[1734736068328,16.0211972,193.66,193.58,16.0211972]
[1734736068625,16.0211972,193.65,193.56,16.0211972]
[1734736068926,16.0211972,193.63,193.56,16.0211972]
[1734736069621,16.0211972,193.62,193.55,16.0211972]
[1734736069825,17.5447972,193.62,193.54,16.0211972]
[1734736070205,16.0211972,193.61,193.54,16.0211972]
[1734736070824,16.0211972,193.59,193.49,0.77485636]
[1734736071006,16.0211972,193.56,193.49,16.0211972]
[1734736072141,6.2526,193.6,193.51,16.0211972]
[1734736072438,6.2526,193.6,193.53,16.0211972]
[1734736074210,16.0211972,193.61,193.53,16.0211972]
[1734736074412,1.5236,193.62,193.51,12.9188]
[1734736074413,1.5236,193.62,193.55,16.0211972]
[1734736075837,1.5236,193.62,193.53,16.0211972]
[1734736076018,16.0211972,193.61,193.53,16.0211972]
[1734736079941,1.5236,193.62,193.45,0.77486319]
[1734736079942,16.0211972,193.59,193.49,16.0211972]
[1734736080513,16.0211972,193.57,193.49,16.0211972]
[1734736080718,1.5236,193.62,193.49,10.26436818]
[1734736080719,10.26436818,193.59,193.49,10.26436818]
[1734736080941,10.26436818,193.59,193.51,10.26436818]
[1734736082045,10.26436818,193.57,193.49,10.26436818]
[1734736085546,10.26436818,193.57,193.48,12.921]
[1734736085750,10.26436818,193.57,193.5,10.26436818]
[1734736086454,10.26436818,193.55,193.44,1.5157]
[1734736086651,10.26436818,193.55,193.46,10.26436818]
[1734736087641,20.0,193.61,193.5,10.26436818]
[1734736087846,10.26436818,193.58,193.5,10.26436818]
[1734736091563,10.26436818,193.56,193.48,10.26436818]
[1734736092429,1.5236,193.62,193.5,10.26436818]
[1734736092627,11.78796818,193.62,193.53,10.26436818]
[1734736097569,1.5236,193.62,193.55,10.26436818]
[1734736097982,16.36656818,193.64,193.57,10.26436818]
[1734736098202,10.26436818,193.66,193.59,10.26436818]
[1734736098771,1.6433,193.67,193.59,10.26436818]
[1734736098974,10.26436818,193.69,193.61,10.26436818]
[1734736099291,10.26436818,193.72,193.65,10.26436818]
[1734736100559,28.91152082,193.8,193.58,27.3508]
[1734736100761,16.01152082,193.73,193.65,16.01152082]
[1734736101257,5.40050886,193.85,193.67,16.01152082]
[1734736101487,5.40050886,193.85,193.61,12.9125]
[1734736101488,12.898,193.83,193.69,16.01152082]
[1734736101694,16.01152082,193.77,193.69,16.01152082]
[1734736101874,14.51152082,193.77,193.69,16.01152082]
[1734736102075,14.01152082,193.77,193.69,16.01152082]
[1734736104095,16.01152082,193.75,193.67,16.01152082]
[1734736104904,16.01152082,193.75,193.65,16.01152082]
[1734736105279,16.01152082,193.73,193.65,16.01152082]
[1734736106761,16.01152082,193.71,193.63,16.01152082]
[1734736108314,22.63172082,193.73,193.63,16.01152082]
[1734736109695,22.63172082,193.73,193.65,16.01152082]
[1734736110211,1.6433,193.74,193.67,16.01152082]
[1734736110927,16.01152082,193.73,193.65,16.01152082]
[1734736114115,16.01152082,193.73,193.62,12.9113]
[1734736114320,16.01152082,193.73,193.65,16.01152082]
[1734736115331,1.6433,193.74,193.65,16.01152082]
[1734736118131,6.2043,193.77,193.69,16.01152082]
[1734736118435,22.21582082,193.77,193.69,16.01152082]
[1734736119840,16.01152082,193.75,193.67,16.01152082]
[1734736120513,16.01152082,193.75,193.61,25.8251]
[1734736120514,16.01152082,193.75,193.61,32.9122]
[1734736120830,6.2043,193.77,193.66,16.01152082]
[1734736120831,16.01152082,193.73,193.66,16.01152082]
[1734736122735,10.24779553,193.73,193.65,10.24779553]
[1734736124557,23.776884,193.76,193.65,10.24779553]
[1734736124738,10.24779553,193.73,193.65,10.24779553]
[1734736129233,10.24779553,193.75,193.67,10.24779553]
[1734736129432,6.2043,193.77,193.67,10.24779553]
[1734736129644,10.24779553,193.76,193.67,10.24779553]
[1734736130137,6.2043,193.77,193.67,10.24779553]
[1734736130365,10.24779553,193.76,193.67,10.24779553]
[1734736133072,22.01217774,193.77,193.67,10.24779553]
[1734736133281,10.24779553,193.76,193.67,10.24779553]
[1734736133981,10.24779553,193.76,193.65,12.9094]
[1734736133982,10.24779553,193.74,193.62,12.9118]
[1734736134181,11.80139553,193.74,193.64,10.24779553]
[1734736134746,10.24779553,193.74,193.64,10.24779553]
[1734736134951,10.24779553,193.74,193.66,10.24779553]
[1734736136185,20.0,193.77,193.66,10.24779553]
[1734736136487,20.0,193.75,193.66,10.24779553]
[1734736137779,13.81995069,193.79,193.68,10.24779553]
[1734736138549,3.57215516,193.79,193.68,10.24779553]
[1734736138752,10.24779553,193.78,193.68,10.24779553]
[1734736138953,20.0,193.78,193.7,10.24779553]
[1734736139160,43.86616916,193.86,193.72,10.24779553]
[1734736139161,10.24779553,193.81,193.72,10.24779553]
[1734736139570,14.451,193.84,193.72,10.24779553]
[1734736139771,10.24779553,193.81,193.72,10.24779553]
[1734736140884,10.24779553,193.81,193.69,12.9067]
[1734736141182,10.24779553,193.81,193.73,10.24779553]
[1734736142851,10.24779553,193.81,193.69,12.9067]
[1734736143078,10.24779553,193.79,193.71,10.24779553]
[1734736143273,23.776884,193.83,193.71,10.24779553]
[1734736143469,20.0,193.81,193.71,10.24779553]
[1734736143755,10.24779553,193.78,193.69,10.24779553]
[1734736143963,10.24779553,193.76,193.69,10.24779553]
[1734736146979,10.24779553,193.77,193.69,10.24779553]
[1734736147499,10.24779553,193.75,193.66,11.74819553]
[1734736149378,10.24779553,193.75,193.66,1.5004]
[1734736149675,10.24779553,193.75,193.67,10.24779553]
[1734736150496,30.24779553,193.77,193.67,10.24779553]
[1734736150700,10.24779553,193.77,193.67,10.24779553]
[1734736150898,10.24779553,193.75,193.67,10.24779553]
[1734736151973,10.24779553,193.75,193.6,9.5327027]
[1734736151974,23.776884,193.72,193.6,9.5327027]
[1734736152303,1.6599,193.75,193.65,10.24779553]
[1734736152480,11.90769553,193.75,193.65,10.24779553]
[1734736154321,11.84558066,193.75,193.65,10.24779553]
[1734736155119,20.0,193.75,193.65,10.24779553]
[1734736155327,30.24779553,193.75,193.65,10.24779553]
[1734736155832,23.776884,193.72,193.63,10.24779553]
[1734736158516,20.0,193.75,193.65,10.24779553]
[1734736158821,10.24779553,193.74,193.65,10.24779553]
[1734736159696,20.0,193.75,193.65,10.24779553]
[1734736159898,10.24779553,193.74,193.61,12.9125]
[1734736160113,10.24779553,193.74,193.63,10.24779553]
[1734736160296,10.24779553,193.74,193.65,10.24779553]
[1734736167965,20.0,193.78,193.67,10.24779553]
[1734736168376,10.24779553,193.77,193.69,10.24779553]
[1734736170972,20.0,193.78,193.69,10.24779553]
[1734736171139,10.24779553,193.78,193.69,10.24779553]
[1734736173179,2.02287208,193.8,193.69,10.24779553]
[1734736173352,11.58230339,193.86,193.75,10.24779553]
[1734736173665,10.24779553,193.84,193.75,10.24779553]
[1734736174343,10.24779553,193.84,193.76,6.3868]
[1734736174533,10.24779553,193.84,193.76,19.2891]
[1734736176187,10.24779553,193.84,193.76,29.53689553]
[1734736176387,551.4811368,193.87,193.78,10.24779553]
[1734736176564,551.4811368,193.87,193.81,10.24779553]
[1734736179199,551.4811368,193.87,193.8,23.14739553]
[1734736179707,551.4811368,193.87,193.8,12.8996]
[1734736179992,10.24779553,193.86,193.8,12.8996]
[1734736183609,551.4811368,193.87,193.8,12.8996]
[1734736183903,10.24779553,193.86,193.8,12.8996]
[1734736187004,10.24779553,193.86,193.78,10.24779553]
[1734736187187,10.24779553,193.86,193.79,10.24779553]
[1734736187392,551.4811368,193.87,193.79,10.24779553]
[1734736187812,561.72893233,193.87,193.77,1.658]
[1734736187981,561.72893233,193.87,193.79,10.24779553]
[1734736188391,10.24779553,193.86,193.79,10.24779553]
[1734736188708,551.4811368,193.87,193.8,10.24779553]
[1734736190409,551.4811368,193.87,193.81,10.24779553]
[1734736195391,551.4811368,193.87,193.8,12.8994]
[1734736195804,551.4811368,193.87,193.8,23.14719553]
[1734736196487,545.98111105,193.87,193.8,23.14719553]
[1734736197711,545.98111105,193.87,193.8,12.8994]
[1734736197906,545.98111105,193.87,193.8,23.14719553]
[1734736200915,545.98111105,193.87,193.82,23.14579553]
[1734736202629,545.98111105,193.87,193.82,48.94289553]
[1734736202915,545.98111105,193.87,193.84,10.24779553]
[1734736204219,545.98111105,193.87,193.82,23.14579553]
[1734736204411,545.98111105,193.87,193.83,10.24779553]
[1734736205814,545.98111105,193.87,193.84,12.8972]
[1734736207546,545.98111105,193.87,193.85,10.24779553]
[1734736208744,545.98111105,193.87,193.81,12.8992]
[1734736208917,545.98111105,193.87,193.84,10.24779553]
[1734736211657,545.98111105,193.87,193.77,1.658]
[1734736211658,556.22890658,193.87,193.77,1.658]
[1734736211945,10.24779553,193.86,193.79,10.24779553]
[1734736212146,545.98111105,193.87,193.79,10.24779553]
[1734736212736,556.22890658,193.87,193.8,10.24779553]
[1734736212937,556.22890658,193.87,193.77,14.5598]
[1734736213156,556.22890658,193.87,193.79,10.24779553]
[1734736213157,10.24779553,193.86,193.79,10.24779553]
[1734736213369,10.24779553,193.85,193.74,12.9038]
[1734736213558,10.24779553,193.85,193.77,10.24779553]
[1734736213742,10.24779553,193.85,193.78,10.24779553]
[1734736214274,545.98111105,193.87,193.78,10.24779553]
[1734736214567,10.24779553,193.86,193.78,10.24779553]
[1734736214862,10.24779553,193.85,193.77,10.24779553]
[1734736215267,10.24779553,193.84,193.74,12.9038]
[1734736215771,10.24779553,193.84,193.76,10.24779553]
[1734736216443,10.24779553,193.82,193.71,12.9057]
[1734736216637,10.24779553,193.82,193.73,10.24779553]
[1734736217063,8.0179,193.83,193.73,10.24779553]
[1734736217268,8.0179,193.83,193.71,12.9057]
[1734736217269,1.5843,193.83,193.77,10.24779553]
[1734736217565,10.24779553,193.85,193.77,10.24779553]
[1734736219662,10.24779553,193.85,193.74,20.0]
[1734736219864,10.24779553,193.85,193.77,10.24779553]
[1734736220672,547.56541105,193.87,193.77,10.24779553]
[1734736220866,10.24779553,193.85,193.77,10.24779553]
[1734736222674,547.56541105,193.87,193.79,10.24779553]
[1734736222885,557.81320658,193.87,193.79,10.24779553]
[1734736223268,547.56541105,193.87,193.79,10.24779553]
[1734736228404,547.29321747,193.87,193.79,10.24779553]
[1734736228901,557.541013,193.87,193.79,10.24779553]
[1734736231508,557.541013,193.87,193.72,38.7156]
[1734736231685,557.541013,193.87,193.77,10.24779553]
[1734736232712,547.29321747,193.87,193.79,10.24779553]
[1734736235922,547.29321747,193.87,193.79,23.14789553]
[1734736236720,547.29321747,193.87,193.81,10.24779553]
[1734736237220,547.29321747,193.87,193.82,12.8985]
[1734736240820,547.29321747,193.87,193.81,10.24779553]
[1734736242816,547.29321747,193.87,193.82,12.8985]
[1734736245432,545.70891747,193.87,193.82,12.8985]
[1734736245935,545.70891747,193.87,193.83,10.24779553]
[1734736246128,545.70891747,193.87,193.85,10.24779553]
[1734736246439,545.70891747,193.87,193.83,20.0]
[1734736246638,545.70891747,193.87,193.86,10.24779553]
[1734736247539,545.70891747,193.87,193.86,23.14369553]
[1734736248241,545.70891747,193.87,193.86,12.8959]
[1734736249436,545.70891747,193.87,193.86,23.14369553]
[1734736249870,545.70891747,193.87,193.86,12.8959]
[1734736250245,545.70891747,193.87,193.86,23.14369553]
[1734736257071,526.40231747,193.87,193.86,23.14369553]
[1734736257269,514.42681747,193.87,193.86,23.14369553]
[1734736257441,491.26151747,193.87,193.86,23.14369553]
[1734736257642,465.11371747,193.87,193.86,23.14369553]
[1734736257846,457.19531747,193.87,193.86,23.14369553]
[1734736258254,443.22191747,193.87,193.86,23.14369553]
[1734736258454,435.12141747,193.87,193.86,23.14369553]
[1734736258974,427.81471747,193.87,193.86,23.14369553]
[1734736259272,420.50801747,193.87,193.86,23.14369553]
[1734736259875,414.34401747,193.87,193.86,23.14369553]
[1734736260060,408.14631747,193.87,193.86,23.14369553]
[1734736260575,400.21051747,193.87,193.86,23.14369553]
[1734736260747,393.11141747,193.87,193.86,23.14369553]
[1734736260947,386.08641747,193.87,193.86,23.14369553]
[1734736261473,372.29881747,193.87,193.86,23.14369553]
[1734736261646,361.41551747,193.87,193.86,23.14369553]
[1734736261853,350.53221747,193.87,193.86,23.14369553]
[1734736262057,339.40781747,193.87,193.86,23.14369553]
[1734736262892,317.93361747,193.87,193.86,23.14369553]
[1734736263565,301.61571747,193.87,193.86,23.14369553]
[1734736263767,263.64021747,193.87,193.86,23.14369553]
[1734736264093,244.28841747,193.87,193.86,23.14369553]
[1734736264260,224.97391747,193.87,193.86,23.14369553]
[1734736264463,180.65621747,193.87,193.86,23.14369553]
[1734736264696,157.14501747,193.87,193.86,23.14369553]
[1734736265362,75.20882034,193.87,193.86,46.92057953]
[1734736265607,22.38689075,193.87,193.86,89.66885165]
[1734736265767,15.89189075,193.87,193.86,92.31657787]
[1734736265987,13.31189075,193.87,193.86,91.54336165]
[1734736266294,9.97829075,193.87,193.86,98.8274848]
[1734736266583,4.81849076,193.87,193.86,98.05426165]
[1734736266787,1.66829076,193.87,193.86,98.05426165]
[1734736266996,0.00129076,193.87,193.86,98.05426165]
[1734736267580,0.02295456,193.9,193.86,98.05426165]
[1734736267581,0.02295456,193.9,193.89,20.0]
[1734736267786,0.02295456,193.9,193.89,72.01223458]
[1734736270295,7.19202482,194.05,193.89,72.01223458]
[1734736270476,15.93982035,194.05,193.96,10.24779553]
[1734736270791,2.07713373,194.09,193.98,10.24779553]
[1734736270981,10.24779553,194.07,193.98,10.24779553]
[1734736271174,2.07713373,194.09,193.98,10.24779553]
[1734736271490,10.91929233,194.06,193.98,10.24779553]
[1734736272596,0.6714968,194.06,193.98,10.24779553]
[1734736273972,22.8743,194.19,194.05,6.4952]
[1734736273973,1.5996,194.18,194.05,6.4952]
[1734736274172,10.24779553,194.09,194.0,10.24779553]
[1734736274484,10.24779553,194.07,194.01,20.0]
[1734736274884,1.5996,194.08,194.01,20.0]
[1734736275098,11.84739553,194.08,194.01,20.0]
[1734736275301,1.5996,194.08,194.01,20.0]
[1734736276199,6.1117,194.16,194.06,10.24779553]
[1734736276415,10.24779553,194.15,194.06,10.24779553]
[1734736276702,6.1117,194.16,194.09,20.0]
[1734736276918,10.24779553,194.17,194.09,20.0]
[1734736277277,1.5996,194.18,194.1,10.24779553]
[1734736277475,1.5996,194.18,194.12,20.0]
[1734736279007,1.5996,194.18,194.06,20.0]
[1734736279316,1.5996,194.18,194.12,20.0]
[1734736279475,1.5996,194.18,194.09,10.24779553]
[1734736279676,1.5996,194.18,194.12,20.0]
[1734736279901,1.5996,194.18,194.03,8.0513]
[1734736280102,16.06500517,194.13,194.07,10.24779553]
[1734736280817,16.06500517,194.13,194.09,10.24779553]
[1734736281292,16.06500517,194.13,194.06,20.0]
[1734736281293,16.06500517,194.13,194.11,10.24779553]
[1734736281617,16.06500517,194.13,194.12,10.24779553]
[1734736281824,16.06500517,194.13,194.06,20.0]
[1734736281996,16.06500517,194.13,194.12,10.24779553]
[1734736282690,10.0,194.19,194.15,20.0]
[1734736283384,10.0,194.19,194.06,20.0]
[1734736283581,10.0,194.19,194.16,20.0]
[1734736283891,10.0,194.19,194.03,14.98918754]
[1734736284092,10.0,194.19,194.11,10.24779553]
[1734736284308,10.0,194.19,194.14,10.24779553]
[1734736285009,10.0,194.19,194.03,15.76187011]
[1734736285182,10.0,194.19,194.06,20.0]
[1734736285386,10.0,194.19,194.13,10.24779553]
[1734736288219,10.0,194.19,194.1,10.247795]
[1734736288410,10.0,194.19,194.14,10.24779553]
[1734736292131,10.0,194.19,194.16,10.24779553]
[1734736292430,10.0,194.19,194.13,20.0]
[1734736292729,10.0,194.19,194.15,10.24779553]
[1734736293528,10.0,194.19,194.13,20.0]
[1734736293733,10.0,194.19,194.16,10.24779553]
[1734736293939,10.0,194.19,194.1,10.247795]
[1734736294102,31.515984,194.18,194.1,10.247795]
[1734736294305,31.515984,194.18,194.12,10.24779553]
[1734736294729,31.515984,194.18,194.03,14.98918754]
[1734736294906,31.515984,194.18,194.03,28.675628]
[1734736295103,31.515984,194.18,194.11,10.24779553]
[1734736295516,31.515984,194.18,194.06,20.0]
[1734736295719,31.515984,194.18,194.13,10.24779553]
[1734736296717,7.7391,194.18,194.13,10.24779553]
[1734736297243,7.7391,194.18,194.15,10.24779553]
[1734736297405,1.6468,194.18,194.15,10.24779553]
[1734736297605,1.6468,194.18,194.17,10.24779553]
[1734736298907,6.0923,194.22,194.17,10.24779553]
[1734736300757,1.6468,194.23,194.17,10.24779553]
[1734736301366,1.6468,194.23,194.19,10.24779553]
[1734736303063,0.6714968,194.25,194.19,10.24779553]
[1734736303764,0.6714968,194.25,194.23,10.24779553]
[1734736304263,0.6714968,194.25,194.21,10.24779553]
[1734736309166,0.6714968,194.25,194.23,10.24779553]
[1734736309948,0.6714968,194.25,194.16,20.0]
[1734736310151,0.6714968,194.25,194.2,10.24779553]
[1734736310529,0.6714968,194.25,194.15,20.0]
[1734736310769,0.6714968,194.25,194.18,10.24779553]
[1734736312473,0.6714968,194.25,194.15,20.0]
[1734736312651,0.6714968,194.25,194.19,10.24779553]
[1734736313174,0.6714968,194.25,194.17,10.24779553]
[1734736314373,0.6714968,194.25,194.19,10.24779553]
[1734736315237,6.5593,194.24,194.12,10.247795]
[1734736315462,6.5593,194.24,194.19,10.24779553]
[1734736319982,6.5593,194.24,194.1,20.0]
[1734736320289,6.5593,194.24,194.18,10.24779553]
[1734736321355,6.5593,194.24,194.11,6.5593]
[1734736321555,6.5593,194.24,194.18,10.24779553]
[1734736326172,6.5593,194.24,194.14,20.0]
[1734736326486,6.5593,194.24,194.17,10.24779553]
[1734736327188,6.5593,194.24,194.14,20.0]
[1734736327382,6.5593,194.24,194.17,10.24779553]
[1734736327694,23.776884,194.23,194.14,20.0]
[1734736327874,23.776884,194.23,194.16,10.24779553]
[1734736328071,23.776884,194.21,194.16,10.24779553]
[1734736328385,23.776884,194.21,194.13,20.0]
[1734736328565,23.776884,194.21,194.16,10.24779553]
[1734736329572,10.24779553,194.2,194.05,7.9363027]
[1734736329772,23.776884,194.16,194.1,10.24779553]
[1734736331583,25.83044384,194.16,194.1,10.24779553]
[1734736331794,23.776884,194.16,194.1,10.24779553]
[1734736331968,1.5493,194.18,194.14,10.24779553]
[1734736332469,1.5493,194.18,194.05,20.0]
[1734736332764,1.5493,194.18,194.14,10.24779553]
[1734736335395,1.5493,194.18,194.12,10.24779553]
[1734736336205,1.6441,194.24,194.17,10.24779553]
[1734736337729,1.6441,194.24,194.2,10.24779553]
[1734736338106,1.6441,194.24,194.14,20.0]
[1734736338435,1.6441,194.24,194.17,10.24779553]
[1734736338936,23.776884,194.23,194.17,10.24779553]
[1734736339303,1.6441,194.24,194.17,10.24779553]
[1734736339928,23.776884,194.23,194.14,20.0]
[1734736340114,23.776884,194.23,194.17,10.24779553]
[1734736341331,1.6441,194.24,194.14,20.0]
[1734736341504,1.6441,194.24,194.2,10.24779553]
[1734736342927,1.6441,194.24,194.17,10.24779553]
[1734736343141,0.6714968,194.25,194.19,10.24779553]
[1734736343925,0.6714968,194.25,194.22,10.24779553]
[1734736344303,0.6714968,194.25,194.19,10.24779553]
[1734736345433,0.6714968,194.25,194.22,10.24779553]
[1734736345742,0.6714968,194.25,194.2,10.24779553]
[1734736347504,0.6714968,194.25,194.11,6.5348]
[1734736347700,23.776884,194.24,194.18,10.24779553]
[1734736348553,0.6714968,194.25,194.18,10.24779553]
[1734736348749,0.6714968,194.25,194.2,10.24779553]
[1734736350622,23.776884,194.24,194.11,6.5348]
[1734736350817,1.5202,194.23,194.18,10.24779553]
[1734736351345,1.5202,194.23,194.2,10.24779553]
[1734736351558,0.6714968,194.25,194.2,10.24779553]
[1734736351842,0.6714968,194.25,194.22,10.24779553]
[1734736352231,0.6714968,194.25,194.11,6.5348]
[1734736352232,0.6714968,194.25,194.2,10.24779553]
[1734736352429,0.6714968,194.25,194.11,6.5348]
[1734736352640,0.6714968,194.25,194.23,10.24779553]
[1734736354248,0.6714968,194.25,194.11,6.5348]
[1734736354249,0.6714968,194.25,194.14,20.0]
[1734736354555,0.6714968,194.25,194.21,10.24779553]
[1734736355803,0.6714968,194.25,194.23,10.24779553]
[1734736356674,0.6714968,194.25,194.21,10.24779553]
[1734736364165,0.6714968,194.25,194.14,20.0]
[1734736364335,0.6714968,194.25,194.2,10.24779553]
[1734736369473,0.6714968,194.25,194.22,10.24779553]
[1734736370554,0.6714968,194.25,194.14,20.0]
[1734736370758,0.6714968,194.25,194.21,10.24779553]
[1734736372372,0.6714968,194.25,194.23,10.24779553]
[1734736372753,0.6714968,194.25,194.21,10.24779553]
[1734736373473,0.6714968,194.25,194.14,20.0]
[1734736373643,0.6714968,194.25,194.2,10.24779553]
[1734736373847,0.6714968,194.25,194.21,10.24779553]
[1734736376298,23.776884,194.24,194.19,10.24779553]
[1734736378480,23.776884,194.24,194.14,20.0]
[1734736378984,23.776884,194.24,194.2,10.24779553]
[1734736381983,23.776884,194.24,194.11,6.5348]
[1734736382500,23.776884,194.24,194.16,10.24779553]
[1734736382794,34.02467953,194.24,194.11,6.5348]
[1734736383102,0.6714968,194.25,194.16,10.24779553]
[1734736383103,23.776884,194.22,194.16,10.24779553]
[1734736384092,34.02467953,194.22,194.14,10.24779553]
[1734736384399,10.24779553,194.21,194.14,10.24779553]
[1734736384695,34.02467953,194.2,194.06,6.2167]
[1734736384870,7.9908,194.23,194.11,10.24779553]